bitfinex-derivatives/quotes_SOLF0:USTF0_20251023
["timestamp","ask_amount","ask_price","bid_price","bid_amount"]
[1761249563248,8.64360831,191.5,191.43,2.64]
[1761249563446,4.6988,191.5,191.43,2.64]
[1761249564353,7.71254778,191.55,191.43,2.64]
[1761249564558,3.94572631,191.54,191.43,2.64]
[1761249564747,2.84,191.55,191.43,2.64]
[1761249564950,6.78572631,191.55,191.43,2.64]
[1761249565351,4.6977,191.54,191.47,4.6992]
[1761249565556,2.84,191.53,191.47,4.6992]
[1761249565851,2.84,191.52,191.47,7.3392]
[1761249566055,2.84,191.51,191.47,7.3392]
[1761249566257,2.84,191.51,191.48,2.87]
[1761249566754,2.84,191.51,191.47,4.6992]
[1761249566949,2.84,191.51,191.45,7.5697]
[1761249567254,2.62,191.55,191.46,2.87]
[1761249567645,2.62,191.55,191.51,2.87]
[1761249567842,2.62,191.59,191.51,2.87]
[1761249568256,7.3164,191.59,191.52,2.87]
[1761249568455,3.94572654,191.58,191.52,2.87]
[1761249568650,2.62,191.57,191.52,2.87]
[1761249568843,2.62,191.57,191.49,5.59851687]
[1761249569048,2.62,191.57,191.5,2.61]
[1761249569242,2.62,191.57,191.5,7.3085]
[1761249569454,2.62,191.57,191.41,9.4012]
[1761249569651,2.61,191.56,191.46,2.61]
[1761249569850,2.61,191.55,191.46,2.61]
[1761249570056,6.55572654,191.55,191.49,7.3086]
[1761249570250,2.61,191.55,191.49,2.61]
[1761249570451,2.61,191.53,191.44,2.61]
[1761249570857,7.3078,191.53,191.45,4.6997]
[1761249571057,2.61,191.51,191.44,2.61]
[1761249571358,2.61,191.55,191.47,2.61]
[1761249571558,2.61,191.54,191.47,2.61]
[1761249571762,2.61,191.53,191.47,2.61]
[1761249571952,6.55720361,191.53,191.47,2.61]
[1761249572150,2.61,191.51,191.47,2.61]
[1761249572349,2.61,191.51,191.44,4.6999]
[1761249572549,2.61,191.5,191.44,4.6999]
[1761249572757,2.61,191.5,191.42,2.72851687]
[1761249572758,2.61,191.49,191.42,4.7004]
[1761249572954,2.61,191.48,191.42,4.7004]
[1761249573156,6.55720361,191.47,191.4,4.7009]
[1761249573354,2.61,191.46,191.4,4.7009]
[1761249574352,11.34215679,191.46,191.4,4.7009]
[1761249574559,6.55720361,191.45,191.4,7.3109]
[1761249574760,2.61,191.45,191.4,7.3109]
[1761249575362,2.61,191.45,191.32,62.90853316]
[1761249575363,2.61,191.44,191.38,4.7015]
[1761249575668,6.56130162,191.44,191.38,4.7015]
[1761249575867,2.61,191.44,191.38,4.7015]
[1761249576366,6.56135073,191.44,191.38,4.7015]
[1761249576561,2.61,191.44,191.38,4.7015]
[1761249577157,6.56030787,191.44,191.38,4.7015]
[1761249577362,2.61,191.44,191.38,4.7015]
[1761249581776,2.61,191.44,191.37,2.61]
[1761249582073,2.61,191.43,191.36,4.7019]
[1761249582274,3.94729681,191.43,191.37,2.61]
[1761249582582,6.55729681,191.44,191.37,7.3116]
[1761249582871,3.94735883,191.43,191.33,2.61]
[1761249583177,2.61,191.43,191.33,2.61]
[1761249583478,7.3109,191.41,191.33,2.61]
[1761249583664,2.61,191.4,191.33,2.61]
[1761249583969,2.61,191.4,191.34,4.7023]
[1761249584176,2.61,191.4,191.35,2.61]
[1761249585476,2.61,191.4,191.35,7.3121]
[1761249586078,2.61,191.46,191.38,2.61]
[1761249586580,7.3095,191.46,191.4,4.7009]
[1761249586869,3.94506061,191.45,191.4,7.3109]
[1761249587072,8.7236814,191.45,191.41,2.61]
[1761249587276,4.87254778,191.49,191.41,2.61]
[1761249587277,8.7236814,191.44,191.41,2.61]
[1761249587573,2.61,191.44,191.41,2.61]
[1761249587776,2.61,191.44,191.37,2.61]
[1761249588484,2.61,191.43,191.33,2.61]
[1761249588779,2.61,191.42,191.36,4.7018]
[1761249588966,2.61,191.42,191.33,2.61]
[1761249589171,2.61,191.46,191.36,2.61]
[1761249589676,2.61,191.44,191.36,2.61]
[1761249590468,2.61,191.43,191.36,2.61]
[1761249590674,2.61,191.42,191.33,2.61]
[1761249591170,2.61,191.42,191.34,4.7023]
[1761249591665,2.61,191.41,191.34,4.7023]
[1761249592970,7.3109,191.41,191.34,4.7023]
[1761249594267,7.3109,191.41,191.34,7.3123]
[1761249595275,2.61,191.39,191.25,62.0]
[1761249595575,2.61,191.36,191.24,2.61]
[1761249595881,2.61,191.36,191.25,2.61]
[1761249596079,2.61,191.33,191.25,2.61]
[1761249596476,2.61,191.33,191.15,43.52]
[1761249596683,2.61,191.33,191.21,2.61]
[1761249596978,2.61,191.3,191.21,2.61]
[1761249597574,2.61,191.3,191.22,4.7054]
[1761249597776,2.61,191.3,191.21,2.61]
[1761249597973,4.704,191.28,191.16,2.61]
[1761249598180,2.61,191.27,191.16,2.61]
[1761249599072,2.72851687,191.25,191.18,4.7064]
[1761249599271,2.61,191.24,191.18,4.7064]
[1761249599471,2.61,191.24,191.16,2.61]
[1761249599679,2.72851687,191.28,191.11,2.6]
[1761249599680,2.72851687,191.22,191.11,2.6]
[1761249599878,2.61,191.21,191.11,2.6]
[1761249600479,2.72851687,191.23,191.11,2.6]
[1761249600681,2.61,191.22,191.14,2.6]
[1761249601470,43.64,191.26,191.09,2.6]
[1761249601471,2.61,191.19,191.09,2.6]
[1761249601677,5.33851687,191.23,191.09,2.6]
[1761249601975,2.72851687,191.17,191.09,2.6]
[1761249602173,2.61,191.16,191.03,2.72851687]
[1761249602380,2.61,191.15,191.04,2.6]
[1761249602776,2.61,191.15,191.06,2.72851687]
[1761249602981,4.82493638,191.22,191.0,2.72851687]
[1761249602982,4.82493638,191.22,191.1,2.6]
[1761249603185,2.61,191.22,191.13,2.6]
[1761249603875,2.61,191.22,191.14,7.3074]
[1761249604081,2.61,191.22,191.15,2.6]
[1761249604680,2.72851687,191.24,191.16,2.6]
[1761249604879,2.61,191.29,191.17,2.6]
[1761249605179,5.33851687,191.29,191.17,2.6]
[1761249605381,5.33851687,191.29,191.2,7.3057]
[1761249605585,5.33851687,191.29,191.2,4.7057]
[1761249605586,2.61,191.29,191.2,4.7057]
[1761249605776,2.61,191.27,191.17,2.6]
[1761249606881,2.61,191.27,191.18,2.6]
[1761249607088,4.87254778,191.34,191.18,2.6]
[1761249607089,2.61,191.31,191.18,2.6]
[1761249607783,2.61,191.29,191.21,4.7056]
[1761249607982,4.81836545,191.32,191.22,2.6]
[1761249608188,2.61,191.33,191.22,2.6]
[1761249608486,2.61,191.37,191.22,2.6]
[1761249608689,3.9126184,191.37,191.22,2.6]
[1761249608877,2.61,191.36,191.22,2.6]
[1761249609380,2.61,191.36,191.28,4.7037]
[1761249609575,2.61,191.36,191.28,7.3037]
[1761249610685,2.61,191.35,191.25,4.7045]
[1761249610890,2.61,191.35,191.25,2.6]
[1761249611780,7.3124,191.35,191.25,2.6]
[1761249611986,2.61,191.33,191.21,2.6]
[1761249612186,2.61,191.32,191.21,2.6]
[1761249612381,2.61,191.3,191.21,2.6]
[1761249612789,2.61,191.29,191.17,2.6]
[1761249612989,2.61,191.28,191.17,2.6]
[1761249613589,7.3142,191.27,191.17,2.6]
[1761249614093,12.13239882,191.27,191.17,2.6]
[1761249614283,4.81819882,191.26,191.17,7.3064]
[1761249615292,4.81819882,191.26,191.18,2.6]
[1761249615888,7.42819882,191.26,191.18,7.3062]
[1761249616087,6.61711174,191.3,191.19,2.6]
[1761249616293,2.61,191.3,191.19,2.6]
[1761249616694,11.36302092,191.3,191.19,2.6]
[1761249616996,4.82958852,191.29,191.16,2.6]
[1761249617196,6.61711174,191.34,191.2,2.6]
[1761249617795,3.92529676,191.33,191.2,2.6]
[1761249617992,15.93903072,191.33,191.24,4.7047]
[1761249618296,7.3127,191.33,191.24,7.3047]
[1761249618797,2.61,191.32,191.24,7.3047]
[1761249619189,2.61,191.32,191.25,7.3045]
[1761249619389,2.61,191.32,191.26,2.6]
[1761249620198,4.7027,191.34,191.26,2.6]
[1761249620400,8.63030354,191.34,191.26,2.6]
[1761249620591,3.92760354,191.33,191.26,2.6]
[1761249620790,12.01696256,191.33,191.26,2.6]
[1761249620990,2.61,191.32,191.23,4.7052]
[1761249621191,2.61,191.32,191.23,7.3052]
[1761249621898,6.53940419,191.32,191.23,7.3052]
[1761249622100,11.24467188,191.32,191.23,7.3052]
[1761249622402,2.61,191.3,191.23,2.6]
[1761249622901,7.3137,191.3,191.23,2.6]
[1761249624498,11.24685129,191.29,191.23,2.6]
[1761249624698,7.3139,191.29,191.23,2.6]
[1761249624899,3.93276035,191.28,191.23,2.6]
[1761249625296,6.54276035,191.28,191.23,2.6]
[1761249625498,11.2541265,191.28,191.23,2.6]
[1761249625699,7.32136615,191.28,191.23,2.6]
[1761249625902,2.61,191.28,191.23,2.6]
[1761249626198,6.54391704,191.28,191.23,2.6]
[1761249626402,11.25528319,191.28,191.23,2.6]
[1761249626604,7.32136615,191.28,191.23,2.6]
[1761249626905,2.61,191.28,191.23,2.6]
[1761249627200,6.54524497,191.28,191.23,2.6]
[1761249627405,11.25661112,191.28,191.23,2.6]
[1761249627611,2.61,191.28,191.23,2.6]
[1761249627807,4.7033,191.31,191.23,2.6]
[1761249628104,8.63936184,191.31,191.23,2.6]
[1761249628508,11.28936184,191.31,191.23,2.6]
[1761249628709,7.3533,191.31,191.23,2.6]
[1761249629315,3.93809387,191.3,191.23,2.6]
[1761249629904,2.87,191.29,191.23,2.6]
[1761249630097,6.80809387,191.29,191.23,2.6]
[1761249630497,2.87,191.28,191.2,7.2958]
[1761249630797,11.51219387,191.28,191.2,7.2958]
[1761249631000,7.5741,191.28,191.2,7.2958]
[1761249631209,2.87,191.28,191.22,2.59]
[1761249632208,2.87,191.28,191.22,7.2953]
[1761249632402,4.7044,191.27,191.12,4.00711174]
[1761249632605,2.87,191.28,191.13,2.59]
[1761249632805,2.87,191.27,191.17,7.2965]
[1761249633807,2.87,191.27,191.18,2.59]
[1761249634002,4.7048,191.25,191.18,2.59]
[1761249637309,4.705,191.24,191.18,2.59]
[1761249637711,2.87,191.25,191.18,2.59]
[1761249637911,4.7055,191.22,191.18,2.59]
[1761249638116,2.87,191.21,191.11,2.59]
[1761249638304,2.87,191.29,191.16,4.00711174]
[1761249638504,3.95068064,191.3,191.17,2.59]
[1761249638713,1.74911074,191.29,191.22,2.59]
[1761249638923,1.74911074,191.32,191.24,2.59]
[1761249639105,1.74911074,191.3,191.24,2.59]
[1761249639619,4.61911074,191.28,191.24,2.59]
[1761249640709,2.87,191.28,191.24,2.59]
[1761249640914,3.9539793,191.29,191.24,2.59]
[1761249641114,2.87,191.29,191.24,2.59]
[1761249641516,6.8239793,191.29,191.24,2.59]
[1761249642521,2.87,191.28,191.24,2.59]
[1761249642920,2.87,191.28,191.15,36.80894016]
[1761249642921,2.87,191.28,191.2,2.59]
[1761249643218,2.87,191.27,191.18,2.59]
[1761249644125,4.7046,191.26,191.18,2.59]
[1761249644609,8.6585793,191.26,191.18,2.59]
[1761249645423,8.6585793,191.26,191.18,7.2963]
[1761249645714,8.6585793,191.26,190.98,12.74044119]
[1761249645715,17.15274778,191.24,190.98,12.74044119]
[1761249645920,2.87,191.15,190.99,2.59]
[1761249646119,6.8239793,191.15,190.99,2.59]
[1761249646315,2.87,191.15,190.99,2.59]
[1761249646620,2.87,191.15,190.96,4.00894016]
[1761249646621,2.87,191.15,191.05,2.59]
[1761249647230,2.87,191.14,191.05,2.59]
[1761249647918,7.5779,191.13,191.05,2.59]
[1761249649519,2.87,191.11,191.05,2.59]
[1761249649918,2.87,191.11,191.02,2.59]
[1761249650728,4.7085,191.1,191.02,2.59]
[1761249650927,2.87,191.09,191.02,2.59]
[1761249655031,7.5779,191.12,191.03,2.59]
[1761249655731,4.7079,191.12,191.03,2.59]
[1761249656037,2.87,191.11,191.03,2.59]
[1761249659736,2.87,191.11,191.04,2.69]
[1761249660239,4.87254778,191.19,190.96,12.1133]
[1761249660439,12.91213046,191.29,190.99,2.69]
[1761249660440,2.88,191.16,190.99,2.69]
[1761249660733,7.5871,191.16,191.06,4.7091]
[1761249660940,2.88,191.15,191.06,4.7091]
[1761249661534,4.7074,191.14,191.04,4.7098]
[1761249661838,2.88,191.13,191.04,7.3998]
[1761249662232,4.708,191.12,191.04,7.3998]
[1761249662430,2.88,191.11,191.04,2.69]
[1761249662829,1.75328446,191.07,191.04,2.69]
[1761249663935,2.88,191.11,191.04,2.69]
[1761249664140,1.75328446,191.1,191.04,2.69]
[1761249664334,1.75328446,191.08,191.04,2.69]
[1761249666241,2.88,191.1,191.01,4.7105]
[1761249666242,1.75328446,191.06,191.01,4.7105]
[1761249666445,4.63328446,191.06,191.02,2.69]
[1761249667439,4.87254778,191.17,190.94,106.08]
[1761249667440,1.75328446,191.04,191.0,2.69]
[1761249668241,2.88,191.03,190.97,2.69]
[1761249668448,1.75328446,191.01,190.97,2.69]
[1761249670244,4.63328446,191.01,190.97,2.69]
[1761249670840,1.75328446,191.01,190.94,44.08]
[1761249671041,1.75328446,190.99,190.94,44.08]
[1761249671246,2.88,190.96,190.93,4.7124]
[1761249671545,1.75328446,190.97,190.93,7.4024]
[1761249671748,4.63328446,190.97,190.93,7.4024]
[1761249672151,2.88,190.96,190.9,2.69]
[1761249672341,1.75328446,190.97,190.9,2.69]
[1761249672544,4.63328446,190.99,190.9,2.69]
[1761249672751,2.88,190.99,190.9,2.69]
[1761249673441,2.74200808,190.99,190.9,2.69]
[1761249673641,2.88,190.98,190.9,2.69]
[1761249673841,2.88,190.98,190.91,4.7129]
[1761249674842,2.88,190.98,190.91,7.4029]
[1761249676043,2.88,190.98,190.94,2.69]
[1761249676348,2.74200808,191.01,190.94,2.69]
[1761249676645,2.88,191.02,190.94,2.69]
[1761249677047,2.88,191.05,190.94,2.69]
[1761249678051,2.88,191.05,190.97,2.69]
[1761249678951,2.88,191.05,190.99,4.7109]
[1761249679541,2.88,191.05,190.97,7.4014]
[1761249679746,7.5897,191.05,190.97,7.4014]
[1761249680047,2.88,191.04,190.97,7.4014]
[1761249680440,2.88,191.04,190.97,4.7114]
[1761249680645,2.88,191.02,190.93,2.74200808]
[1761249680842,2.88,191.02,190.94,2.69]
[1761249681155,2.88,191.02,190.91,2.69]
[1761249681347,2.88,191.01,190.91,2.69]
[1761249682055,2.88,191.01,190.95,4.7119]
[1761249683454,6.94650553,191.01,190.95,4.7119]
[1761249683654,2.88,191.01,190.93,4.7124]
[1761249684149,2.88,191.01,190.93,10.14440808]
[1761249684350,6.94735194,191.01,190.94,2.69]
[1761249684548,2.88,191.01,190.94,2.69]
[1761249685154,2.88,191.01,190.97,2.69]
[1761249685351,6.95019084,191.01,190.97,2.69]
[1761249685552,2.88,191.01,190.97,2.69]
[1761249685752,2.88,191.01,190.97,7.4014]
[1761249685959,7.5897,191.05,190.98,2.69]
[1761249686147,4.0727462,191.04,190.98,2.69]
[1761249686351,6.7327462,191.03,190.98,2.69]
[1761249686548,4.0727462,191.02,190.98,2.69]
[1761249687460,4.0727462,191.01,190.98,2.69]
[1761249687756,4.0727462,191.0,190.98,2.69]
[1761249687957,4.0727462,191.02,190.98,2.69]
[1761249688260,4.0727462,191.01,190.98,7.4012]
[1761249688559,4.0727462,191.0,190.98,7.5112]
[1761249688759,2.66,191.03,190.98,7.5112]
[1761249688954,6.92479215,191.02,190.98,7.5112]
[1761249689258,2.84,191.0,190.96,2.75]
[1761249689563,7.71254778,191.04,190.98,2.75]
[1761249689852,4.08954883,191.03,190.99,4.7109]
[1761249690058,4.08954883,191.02,191.0,2.75]
[1761249690251,4.08954883,191.01,191.0,2.75]
[1761249691060,4.08954883,191.01,191.0,7.4608]
[1761249691260,4.08954883,191.01,190.98,2.75]
[1761249691462,4.08954883,191.0,190.98,2.75]
[1761249691658,4.08954883,190.99,190.98,2.75]
[1761249691855,4.08954883,190.99,190.98,7.4612]
[1761249692263,2.84,191.04,190.98,2.75]
[1761249692569,4.09641159,191.03,191.01,2.75]
[1761249692758,4.09641159,191.02,191.01,2.75]
[1761249692957,4.09603125,191.02,191.01,2.75]
[1761249693358,7.71254778,191.07,191.01,2.75]
[1761249693559,4.0967745,191.06,191.01,2.75]
[1761249693759,6.9367745,191.05,191.01,2.75]
[1761249693961,4.0967745,191.04,191.01,2.75]
[1761249694157,4.0967745,191.03,191.01,2.75]
[1761249694468,4.0967745,191.02,191.01,2.75]
[1761249697074,4.0967745,191.02,190.99,2.75]
[1761249697263,4.08097986,191.01,190.99,2.75]
[1761249697463,2.84,191.05,190.99,2.75]
[1761249697774,4.87254778,191.06,190.96,7.4617]
[1761249697775,2.84,191.03,190.96,7.4617]
[1761249698073,6.92098008,191.02,190.96,7.4617]
[1761249698273,2.84,191.0,190.92,2.75]
[1761249698570,2.84,190.98,190.92,2.75]
[1761249698775,6.92061701,190.97,190.92,2.75]
[1761249699070,4.08061701,190.96,190.93,2.75]
[1761249699367,2.84,190.97,190.9,4.7132]
[1761249699670,6.91993318,190.96,190.89,2.75]
[1761249699874,4.07993318,190.95,190.89,2.75]
[1761249700169,4.07993318,190.94,190.9,2.75]
[1761249700470,2.84,190.94,190.9,2.75]
[1761249700673,6.91993318,190.94,190.9,2.75]
[1761249700873,2.84,190.94,190.9,2.75]
[1761249701067,2.84,190.93,190.9,2.75]
[1761249701371,2.84,190.93,190.89,4.7134]
[1761249701675,2.84,190.93,190.86,2.75]
[1761249701676,2.84,190.93,190.87,4.7139]
[1761249702171,5.58200808,190.92,190.87,7.4639]
[1761249702369,2.84,190.91,190.87,7.4639]
[1761249702575,2.84,190.91,190.87,4.7139]
[1761249703771,2.84,190.91,190.87,7.4639]
[1761249703971,2.84,190.91,190.85,2.75]
[1761249704167,2.84,190.91,190.81,2.75]
[1761249704372,5.58200808,190.89,190.84,4.7147]
[1761249704566,5.58200808,190.89,190.84,7.4647]
[1761249705268,2.74200808,190.92,190.85,2.75]
[1761249706175,4.0727231,190.94,190.85,2.75]
[1761249706469,2.84,190.95,190.85,2.75]
[1761249706666,5.58200808,190.93,190.85,2.75]
[1761249706971,4.87254778,191.01,190.86,2.75]
[1761249707177,4.07476292,191.0,190.89,2.75]
[1761249707580,4.07476292,191.0,190.96,2.75]
[1761249707767,3.00247,191.01,190.96,2.75]
[1761249708266,7.07723292,191.01,190.96,2.75]
[1761249708472,6.91476292,191.0,190.96,2.75]
[1761249708668,4.07476292,190.99,190.96,2.75]
[1761249708876,0.16247,191.01,190.96,2.75]
[1761249709076,7.07723292,191.01,190.96,2.75]
[1761249709274,4.07476292,191.0,190.97,2.75]
[1761249709578,0.16247,191.01,190.97,2.75]
[1761249710784,0.16247,191.01,190.99,2.75]
[1761249711481,0.16247,191.01,191.0,2.75]
[1761249712080,0.16247,191.01,190.96,2.74200808]
[1761249712081,0.16247,191.01,190.98,2.75]
[1761249712583,0.16247,191.01,190.99,2.75]
[1761249713476,0.16247,191.01,190.97,2.75]
[1761249714073,3.00247,191.01,190.93,5.49200808]
[1761249714284,3.00247,191.01,190.93,2.75]
[1761249714590,4.080938,191.0,190.93,2.75]
[1761249714789,4.080938,190.99,190.93,2.75]
[1761249714989,6.920938,191.0,190.93,2.75]
[1761249715287,2.84,190.98,190.91,4.713]
[1761249715482,2.84,190.97,190.91,4.713]
[1761249715685,2.84,190.97,190.89,2.75]
[1761249716186,4.080938,190.96,190.89,2.75]
[1761249716386,4.080938,190.96,190.9,4.7131]
[1761249717391,3.00247,191.01,190.92,2.75]
[1761249717688,2.84,190.99,190.92,2.75]
[1761249717890,4.079285,190.98,190.92,2.75]
[1761249719288,4.079285,190.98,190.92,7.4626]
[1761249719484,4.079285,191.0,190.93,2.87]
[1761249719691,0.16247,191.01,191.0,2.87]
[1761249719983,0.16247,191.01,190.97,2.87]
[1761249720778,2.64,191.0,190.9,2.74200808]
[1761249720980,2.64,191.0,190.83,9.4295]
[1761249720981,4.08041106,191.0,190.89,2.87]
[1761249721179,6.72041106,190.99,190.89,2.87]
[1761249721486,4.08041106,190.98,190.91,4.713]
[1761249721690,2.64,190.98,190.91,4.713]
[1761249721989,2.64,190.96,190.89,2.87]
[1761249722488,6.72041106,190.96,190.89,2.87]
[1761249722682,4.87508407,191.0,190.89,2.87]
[1761249722683,4.88975135,190.97,190.9,2.87]
[1761249722889,11.60971667,190.99,190.9,2.87]
[1761249723087,6.71996532,190.98,190.9,2.87]
[1761249723291,4.88975135,190.99,190.9,2.87]
[1761249723292,4.07996532,190.97,190.9,2.87]
[1761249723593,2.64,190.97,190.9,2.87]
[1761249723792,6.71996532,190.97,190.9,7.5831]
[1761249723998,6.71996532,190.96,190.86,2.87]
[1761249724186,2.64,190.96,190.86,2.87]
[1761249724490,11.60933495,190.96,190.89,4.7134]
[1761249724694,2.64,190.96,190.89,4.7134]
[1761249724887,2.64,190.96,190.87,4.7139]
[1761249725085,2.64,190.94,190.82,77.72870565]
[1761249725396,2.64,190.92,190.83,2.87]
[1761249725586,6.71955584,190.92,190.83,2.87]
[1761249725786,4.07955584,190.91,190.83,2.87]
[1761249725986,11.61034395,190.92,190.85,4.7144]
[1761249726187,7.53078811,190.92,190.85,4.7144]
[1761249726387,2.64,190.92,190.85,4.7144]
[1761249726889,6.6744719,190.92,190.85,4.7144]
[1761249727388,11.56178771,190.92,190.85,4.7144]
[1761249727694,7.52731581,190.92,190.85,4.7144]
[1761249727897,2.64,190.92,190.85,4.7144]
[1761249728089,6.6731312,190.92,190.85,4.7144]
[1761249728288,11.55879999,190.92,190.85,4.7144]
[1761249728488,2.64,190.9,190.83,2.87]
[1761249728793,2.64,190.9,190.79,2.87]
[1761249729497,2.64,190.91,190.79,2.87]
[1761249729890,2.64,190.9,190.79,2.87]
[1761249730197,2.64,190.89,190.77,44.06]
[1761249730393,2.64,190.88,190.75,2.87]
[1761249730585,2.64,190.87,190.75,2.87]
[1761249730993,2.64,190.86,190.75,2.87]
[1761249731189,2.64,190.84,190.76,2.87]
[1761249732197,2.64,190.83,190.71,2.87]
[1761249732798,4.02367406,190.88,190.71,2.87]
[1761249732799,4.7155,190.81,190.71,2.87]
[1761249733093,2.64,190.8,190.71,2.87]
[1761249733500,7.355,190.84,190.72,2.87]
[1761249733702,2.64,190.84,190.72,2.87]
[1761249734386,2.64,190.84,190.74,2.87]
[1761249734696,4.87508407,190.91,190.76,2.87]
[1761249734901,2.64,190.88,190.78,2.87]
[1761249736187,2.64,190.88,190.79,4.7157]
[1761249736394,2.64,190.88,190.8,2.87]
[1761249737901,2.64,190.87,190.79,4.7157]
[1761249738898,2.64,190.87,190.76,2.87]
[1761249738899,2.64,190.87,190.77,2.87]
[1761249739198,2.64,190.86,190.77,2.87]
[1761249739402,2.64,190.85,190.77,2.87]
[1761249739702,2.64,190.85,190.7,2.87]
[1761249739889,2.64,190.82,190.7,2.87]
[1761249740085,2.64,190.79,190.7,2.87]
[1761249740490,2.64,190.78,190.64,2.87]
[1761249740692,4.02936114,190.7,190.55,196.15564862]
[1761249740901,2.64,190.69,190.55,2.87]
[1761249741105,4.7187,190.68,190.55,2.87]
[1761249741402,2.64,190.67,190.55,2.87]
[1761249741602,6.64206413,190.67,190.55,2.87]
[1761249741903,2.64,190.66,190.55,2.87]
[1761249742197,2.64,190.65,190.55,2.87]
[1761249742397,4.02936114,190.63,190.39,150.86]
[1761249742613,2.64,190.59,190.42,2.87]
[1761249742901,2.64,190.55,190.42,2.87]
[1761249743106,4.02936114,190.56,190.42,2.87]
[1761249743107,2.64,190.53,190.42,2.87]
[1761249744204,2.64,190.57,190.43,2.87]
[1761249744805,2.64,190.55,190.43,2.87]
[1761249744999,2.64,190.51,190.35,4.02936114]
[1761249745197,2.64,190.51,190.36,2.87]
[1761249745806,2.64,190.56,190.41,2.87]
[1761249746008,2.64,190.56,190.43,2.87]
[1761249746504,4.8077731,190.59,190.45,2.69]
[1761249746711,4.02936114,190.62,190.45,2.69]
[1761249746712,2.86,190.6,190.45,2.69]
[1761249747107,7.6677731,190.6,190.45,2.69]
[1761249747296,2.86,190.58,190.45,2.69]
[1761249747500,2.86,190.57,190.4,7.4154]
[1761249747702,2.86,190.56,190.41,2.69]
[1761249748009,2.86,190.56,190.46,2.69]
[1761249748206,7.65340493,190.6,190.46,2.69]
[1761249748405,2.86,190.6,190.46,2.69]
[1761249749004,2.86,190.6,190.48,2.63]
[1761249749605,2.8,190.52,190.43,2.63]
[1761249750310,2.8,190.57,190.43,2.63]
[1761249752117,2.8,190.57,190.45,4.7242]
[1761249752315,2.8,190.57,190.46,2.6]
[1761249753923,2.71,190.56,190.46,2.6]
[1761249754712,7.51117217,190.56,190.46,2.6]
[1761249754917,4.80117217,190.55,190.46,2.6]
[1761249755126,6.73936114,190.54,190.42,2.6]
[1761249756021,2.71,190.53,190.42,2.6]
[1761249756221,2.71,190.66,190.52,4.7225]
[1761249756424,6.73936114,190.63,190.52,2.6]
[1761249756824,2.71,190.62,190.43,2.6]
[1761249757628,2.71,190.62,190.5,2.6]
[1761249758223,2.71,190.62,190.52,2.6]
[1761249759526,2.71,190.62,190.54,2.6]
[1761249760330,2.71,190.62,190.53,4.7224]
[1761249760331,2.71,190.62,190.51,2.6]